Workbook

Sheet Kurs
A4: Kursbeschickung
A5: Mgk | C5: 110 | D5: =D7-D6 -> 109.9 | E5: 7 | F5: MgK (Magnetkompasskurs): Winkel zwischen Magnetkompass Nord (MgN) und der Rechtvorausrichtung des Schiffes
A6: Abl | C6: =IF(VLOOKUP(ROUNDDOWN(C5,-1),abl_mgk,2,0)<VLOOKUP(ROUNDUP(C5,-1),abl_mgk,2,0),VLOOKUP(ROUNDDOWN(C5,-1),abl_mgk,2,0)+ABS((VLOOKUP(ROUNDDOWN(C5,-1),abl_mgk,2,0)-VLOOKUP(ROUNDUP(C5,-1),abl_mgk,2,0))/10*(C5-ROUNDDOWN(C5,-1))),VLOOKUP(ROUNDDOWN(C5,-1),abl_mgk,2,0)-ABS((VLOOKUP(ROUNDDOWN(C5,-1),abl_mgk,2,0)-VLOOKUP(ROUNDUP(C5,-1),abl_mgk,2,0))/10*(C5-ROUNDDOWN(C5,-1)))) -> 9 | D6: =IF(VLOOKUP(ROUNDDOWN(D7,-1),abl_rwk,2,0)<VLOOKUP(ROUNDUP(D7,-1),abl_rwk,2,0),VLOOKUP(ROUNDDOWN(D7,-1),abl_rwk,2,0)+ABS((VLOOKUP(ROUNDDOWN(D7,-1),abl_rwk,2,0)-VLOOKUP(ROUNDUP(D7,-1),abl_rwk,2,0))/10*(D7-ROUNDDOWN(D7,-1))),VLOOKUP(ROUNDDOWN(D7,-1),abl_rwk,2,0)-ABS((VLOOKUP(ROUNDDOWN(D7,-1),abl_rwk,2,0)-VLOOKUP(ROUNDUP(D7,-1),abl_rwk,2,0))/10*(D7-ROUNDDOWN(D7,-1)))) -> 9.1 | F6: Abl (Ablenkung; älterer Begriff: Deviation): Winkel zwischen missweisend Nord (mwN) und Magnetkompass Nord (MgN)
A7: mwk | C7: =C5+C6 -> 119 | D7: =D9-D8 -> 119 | F7: mwK (missweisender Kurs): Winkel zwischen missweisend Nord (mwN) und der Rechtvorausrichtung
A8: MW | C8: -3 | D8: -3 | F8: Mw (Missweisung): Winkel zwischen rechtweisend Nord (rwN) und missweisend Nord (mwN)
A9: rwk | C9: =C7+C8 -> 116 | D9: =D11-D10 -> 116 | F9: rwK (rechtweisender Kurs): Winkel zwischen rechtweisend Nord (rwN) und der Rechtvorausrichtung des Schiffes
A10: BW | C10: 5 | D10: 5 | F10: BW (Beschickung Wind): Winkel zwischen rechtweisender Kurs (rwK) und dem Kurs durchs Wasser (KdW)
A11: KdW | C11: =C9+C10 -> 121 | D11: =D13-D12 -> 121 | F11: KdW (Kurs durchs Wasser): Auf das Wasser bezogener Winkel zwischen dem Kurs und rechtweisend Nord (rwN)
A12: BS | C12: -5 | D12: -5 | F12: BS (Beschickung Strom): Durch Strom bewirkte Versetzung von einem gegissten zu einem wahren Ort
A13: KüG | C13: =C11+C12 -> 116 | D13: =C13 -> 116 | F13: KüG (Kurs über Grund): Auf den Grund bezogener Winkel zwischen dem Kurs und rechtweisend Nord (rwN)

Sheet Missweisung
A1: Missweisung
A2: Karte | B2: 2000
B3: 0.1701388889 | C3: west | D3: JJJJ, °,', Ost/west
A4: Järhl. Änderung | B4: 0.005555555556 | C4: east | D4: °, '
A5: Aktuelles Jahr | B5: 2005
A6: MW | B6: =ROUND((IF(C3="west",-B3*24,B3*24)+(IF(C4="west",-B4*24,B4*24)*(B5-B2))),0) -> -3 | C6: °

Sheet Ablenkung
A3: AblenkungsTabelle
AM4: =ATAN(10/13)*180/PI() -> 37.56859203
B5: Mgk | C5: MW | E5: mwk | F5: MW | AG5: Mgk | AH5: MW | AJ5: mwk | AK5: MW
B6: 0 | C6: =AH6 -> -4 | E6: 0 | F6: =AK6 -> -3 | AG6: 0 | AH6: -4 | AJ6: 0 | AK6: -3 | AM6: =10/TAN(AM4*PI()/180) -> 13
B7: 10 | C7: =AH7 -> -1 | E7: 10 | F7: =AK7 -> -1 | AG7: 10 | AH7: -1 | AJ7: 10 | AK7: -1 | AM7: 0
B8: 20 | C8: 2 | E8: 20 | F8: 2 | AG8: 20 | AH8: 2 | AJ8: 20 | AK8: 2 | AM8: =-AM6 -> -13
B9: 30 | C9: 5 | E9: 30 | F9: 4 | AG9: 30 | AH9: 5 | AJ9: 30 | AK9: 4
B10: 40 | C10: 7 | E10: 40 | F10: 6 | AG10: 40 | AH10: 7 | AJ10: 40 | AK10: 6 | AM10: =AM6 -> 13
B11: 50 | C11: 9 | E11: 50 | F11: 7 | AG11: 50 | AH11: 9 | AJ11: 50 | AK11: 7 | AM11: 0
B12: 60 | C12: 10 | E12: 60 | F12: 9 | AG12: 60 | AH12: 10 | AJ12: 60 | AK12: 9 | AM12: =-AM10 -> -13
B13: 70 | C13: 11 | E13: 70 | F13: 10 | AG13: 70 | AH13: 11 | AJ13: 70 | AK13: 10
B14: 80 | C14: 12 | E14: 80 | F14: 11 | AG14: 80 | AH14: 12 | AJ14: 80 | AK14: 11 | AM14: =AM10 -> 13
B15: 90 | C15: 11 | E15: 90 | F15: 11 | AG15: 90 | AH15: 11 | AJ15: 90 | AK15: 11 | AM15: 0
B16: 100 | C16: 10 | E16: 100 | F16: 11 | AG16: 100 | AH16: 10 | AJ16: 100 | AK16: 11 | AM16: =-AM14 -> -13
B17: 110 | C17: 9 | E17: 110 | F17: 10 | AG17: 110 | AH17: 9 | AJ17: 110 | AK17: 10
B18: 120 | C18: 8 | E18: 120 | F18: 9 | AG18: 120 | AH18: 8 | AJ18: 120 | AK18: 9 | AM18: =AM14 -> 13
B19: 130 | C19: 8 | E19: 130 | F19: 8 | AG19: 130 | AH19: 8 | AJ19: 130 | AK19: 8 | AM19: 0
B20: 140 | C20: 6 | E20: 140 | F20: 7 | AG20: 140 | AH20: 6 | AJ20: 140 | AK20: 7 | AM20: =-AM18 -> -13
B21: 150 | C21: 5 | E21: 150 | F21: 6 | AG21: 150 | AH21: 5 | AJ21: 150 | AK21: 6
B22: 160 | C22: 4 | E22: 160 | F22: 4 | AG22: 160 | AH22: 4 | AJ22: 160 | AK22: 4 | AM22: =AM18 -> 13
B23: 170 | C23: 4 | E23: 170 | F23: 4 | AG23: 170 | AH23: 4 | AJ23: 170 | AK23: 4 | AM23: 0
B24: 180 | C24: 6 | E24: 180 | F24: 5 | AG24: 180 | AH24: 6 | AJ24: 180 | AK24: 5 | AM24: =-AM22 -> -13
B25: 190 | C25: 7 | E25: 190 | F25: 6 | AG25: 190 | AH25: 7 | AJ25: 190 | AK25: 6
B26: 200 | C26: 7 | E26: 200 | F26: 7 | AG26: 200 | AH26: 7 | AJ26: 200 | AK26: 7 | AM26: =AM22 -> 13
B27: 210 | C27: 6 | E27: 210 | F27: 7 | AG27: 210 | AH27: 6 | AJ27: 210 | AK27: 7 | AM27: 0
B28: 220 | C28: 5 | E28: 220 | F28: 6 | AG28: 220 | AH28: 5 | AJ28: 220 | AK28: 6 | AM28: =-AM26 -> -13
B29: 230 | C29: 3 | E29: 230 | F29: 4 | AG29: 230 | AH29: 3 | AJ29: 230 | AK29: 4
B30: 240 | C30: 2 | E30: 240 | F30: 2 | AG30: 240 | AH30: 2 | AJ30: 240 | AK30: 2 | AM30: =AM26 -> 13
B31: 250 | C31: 0 | E31: 250 | F31: 0 | AG31: 250 | AH31: 0 | AJ31: 250 | AK31: 0 | AM31: 0
B32: 260 | C32: -3 | E32: 260 | F32: -4 | AG32: 260 | AH32: -3 | AJ32: 260 | AK32: -4 | AM32: =-AM30 -> -13
B33: 270 | C33: -5 | E33: 270 | F33: -6 | AG33: 270 | AH33: -5 | AJ33: 270 | AK33: -6
B34: 280 | C34: -7 | E34: 280 | F34: -9 | AG34: 280 | AH34: -7 | AJ34: 280 | AK34: -9 | AM34: =AM30 -> 13
B35: 290 | C35: -9 | E35: 290 | F35: -10 | AG35: 290 | AH35: -9 | AJ35: 290 | AK35: -10 | AM35: 0
B36: 300 | C36: -10 | E36: 300 | F36: -11 | AG36: 300 | AH36: -10 | AJ36: 300 | AK36: -11 | AM36: =-AM34 -> -13
B37: 310 | C37: -11 | E37: 310 | F37: -11 | AG37: 310 | AH37: -11 | AJ37: 310 | AK37: -11
B38: 320 | C38: -11 | E38: 320 | F38: -10 | AG38: 320 | AH38: -11 | AJ38: 320 | AK38: -10 | AM38: =AM34 -> 13
B39: 330 | C39: -10 | E39: 330 | F39: -9 | AG39: 330 | AH39: -10 | AJ39: 330 | AK39: -9 | AM39: 0
B40: 340 | C40: -9 | E40: 340 | F40: -8 | AG40: 340 | AH40: -9 | AJ40: 340 | AK40: -8 | AM40: =-AM38 -> -13
B41: 350 | C41: -7 | E41: 350 | F41: -6 | AG41: 350 | AH41: -7 | AJ41: 350 | AK41: -6
B42: 360 | C42: -4 | E42: 360 | F42: -3 | AG42: 360 | AH42: -4 | AJ42: 360 | AK42: -3 | AM42: =AM38 -> 13

Sheet strom
I1: Welchen Weg hat das Schiff über Grund zurückgelegt ?
J2: Vektoren | M2: Vektoren
B4: Strombeschickung | I4: Kdw | J4: =C6 -> 120 | L4: Kdw | M4: =(D10)-ASINH(D9/(D7/(SIN((D8-D10)*PI()/180))))*180/PI() -> 120.0185012
C5: Maßstab | D5: 1 | I5: FdW | J5: =C7 -> 5 | L5: FdW | M5: =D7 -> 5
B6: Kdw | C6: 120 | D6: =M4 -> 120.0185012 | E6: ° | H6: Kdw | I6: gegen | J6: =SIN(C6*(PI()/180))*C7 -> 4.330127019 | K6: Kdw | L6: gegen | M6: =SIN(D6*(PI()/180))*D7 -> 4.329319527
B7: FdW | C7: 5 | D7: =C7 -> 5 | E7: kn | I7: an | J7: =COS(C6*(PI()/180))*C7 -> -2.5 | L7: an | M7: =COS(D6*(PI()/180))*D7 -> -2.501398096
B8: StR | C8: 140 | D8: =C8 -> 140 | E8: ° | H8: StR | I8: gegen | J8: =SIN(C8*(PI()/180))*C9 -> 1.285575219 | K8: StR | L8: gegen | M8: =SIN(D8*(PI()/180))*D9 -> 1.285575219
B9: StG | C9: 2 | D9: 2 | E9: kn | I9: an | J9: =COS(C8*(PI()/180))*C9 -> -1.532088886 | L9: an | M9: =COS(D8*(PI()/180))*D9 -> -1.532088886
B10: KüG | C10: =J12 -> 125.6784459 | D10: 125.6784459 | E10: ° | H10: KüG | I10: gegen | J10: =J6+J8 -> 5.615702238 | K10: KüG | L10: gegen | M10: =SIN(D10*PI()/180)*D11 -> 5.615831945
B11: FüG | C11: =J13 -> 6.913309802 | D11: =M13 -> 6.91346948 | E11: kn | I11: an | J11: =J7+J9 -> -4.032088886 | L11: an | M11: =COS(D10*PI()/180)*D11 -> -4.032182016
B12: BS | C12: =J14 -> 5.678445857 | D12: =M14 -> 5.659944673 | E12: ° | I12: KüG | J12: =IF(ATAN2(J11,J10)*180/(PI())<0,360+ATAN2(J11,J10)*180/(PI()),ATAN2(J11,J10)*180/(PI())) -> 125.6784459 | L12: KüG | M12: =D10 -> 125.6784459
I13: FüG | J13: =SQRT(POWER(J10,2)+POWER(J11,2)) -> 6.913309802 | L13: FüG | M13: =SQRT(POWER(D9,2)+POWER(D7,2)-(2*D9*D7*COS((180-(ASINH(D9/(D7/(SIN((D8-D10)*PI()/180))))*180/PI())-(D8-D10))*PI()/180))) -> 6.91346948
I14: BS | J14: =J12-J4 -> 5.678445857 | L14: BS | M14: =M12-M4 -> 5.659944673
C20: =B6 -> Kdw | D20: =C6 -> 120 | E20: 120.0185012
C21: =B7 -> FdW | D21: 5 | E21: 5
C22: =B8 -> StR | D22: 140 | E22: 140
C23: =B9 -> StG | D23: 2 | E23: 2
C24: =B10 -> KüG | D24: 125.6784459 | E24: 125.6784459
C25: =B11 -> FüG | D25: 6.913309802 | E25: 6.91346948
C26: =B12 -> BS | D26: 5.678445857 | E26: 5.659944673

Sheet radar
A2: Head up | D2: Maßstab | E2: 2 | H2: Koordinaten
B3: RsP [0-360] | C3: sm / kn (kurisv) | D3: Mgk | E3: hh:mm | H3: x | I3: y | J3: length | K3: winkel (0 - 360°)
A4: A FdW | B4: 0 | C4: 6 | D4: 130 | F4: Kurs A (eigener), 0 = head up | H4: =J4*(SIN(B4*PI()/180)) -> 0 | I4: =J4*(COS(B4*PI()/180)) -> 1.2 | J4: =C4*($E$9/60) -> 1.2 | K4: =IF(ATAN2(I4,H4)*180/PI()<0,360+ATAN2(I4,H4)*180/PI(),ATAN2(I4,H4)*180/PI()) -> 0
H5: =H6-H4 -> 4.698463104 | I5: =I6-I4 -> 0.5101007166 | J5: =SQRT((POWER(H5,2)+POWER(I5,2)))*($E$9/60) -> 0.9452144366 | K5: =IF(ATAN2(I5,H5)*180/PI()<0,360+ATAN2(I5,H5)*180/PI(),ATAN2(I5,H5)*180/PI()) -> 83.80380514
A6: B1 | B6: 70 | C6: 5 | D6: 100 | E6: 11:36:00 | F6: Beobachtung 1 | H6: =J6*(SIN(B6*PI()/180)) -> 4.698463104 | I6: =J6*(COS(B6*PI()/180)) -> 1.710100717 | J6: =C6 -> 5 | K6: =IF(ATAN2(I6,H6)*180/PI()<0,360+ATAN2(I6,H6)*180/PI(),ATAN2(I6,H6)*180/PI()) -> 70
A7: B2 | B7: 60 | C7: 4 | D7: 90 | E7: 11:48:00 | F7: Beobachtung 2
A8: B2kor | B8: =(D7-D6)+B7 -> 50 | C8: =C7 -> 4 | D8: =D6 -> 100 | E8: =E7 -> 11:48:00 | F8: Beobachtung 2 korrigier, bezug auf B1 | H8: =J8*(SIN(B8*PI()/180)) -> 3.064177772 | I8: =J8*(COS(B8*PI()/180)) -> 2.571150439 | J8: =C8 -> 4 | K8: =IF(ATAN2(I8,H8)*180/PI()<0,360+ATAN2(I8,H8)*180/PI(),ATAN2(I8,H8)*180/PI()) -> 50
D9: Zeitdiff b1/b2 | E9: =(MINUTE(E7)-MINUTE(E6)) -> 12
A10: KBrel | B10: =K10 -> 297.7832309 | C10: =J10*(60/E9) -> 9.236199392 | D10: =IF(K10+D$8>360,K10+D$8-360,K10+D$8) -> 37.78323092 | F10: Kurs B relativ | H10: =H8-H6 -> -1.634285331 | I10: =I8-I6 -> 0.8610497221 | J10: =SQRT((POWER(H10,2)+POWER(I10,2))) -> 1.847239878 | K10: =IF(ATAN2(I10,H10)*180/PI()<0,360+ATAN2(I10,H10)*180/PI(),ATAN2(I10,H10)*180/PI()) -> 297.7832309
A11: CPA | B11: =IF(K11>360,K11-360,K11) -> 207.7832309 | C11: =ABS(J11) -> 3.703039841 | D11: =IF(J11>0,"bkb","stb") -> stb | F11: Kleinster pasierabstand | H11: =J11*(SIN(B11*PI()/180)) -> 1.726089537 | I11: =J11*(COS(B11*PI()/180)) -> 3.276143919 | J11: =COS((K8-K11)*PI()/180)*C8 -> -3.703039841 | K11: =IF(K10+90>360,K10+90-360,K10+90)+180 -> 207.7832309
A12: TCPA | C12: =J12/(C10/60) -> 9.825125709 | F12: Zeitspanne bis zum CPA [min] | H12: =H11-H8 -> -1.338088236 | I12: =I11-I8 -> 0.7049934802 | J12: =SQRT((POWER(H12,2)+POWER(I12,2))) -> 1.512447002 | K12: =IF(K10+90>360,K10+90-360,K10+90) -> 27.78323092
A13: KBabs | B13: =K13 -> 321.5877526 | C13: =J13*(60/E9) -> 13.15181974 | D13: =IF(K13+D$8>360,K13+D$8-360,K13+D$8) -> 61.58775256 | F13: Kurs B absolut | H13: =-(-H8+H6) -> -1.634285331 | I13: =I8-(I6-I4) -> 2.061049722 | J13: =SQRT((POWER(H13,2)+POWER(I13,2))) -> 2.630363949 | K13: =IF(ATAN2(I13,H13)*180/PI()<0,360+ATAN2(I13,H13)*180/PI(),ATAN2(I13,H13)*180/PI()) -> 321.5877526
A15: Kursänderung | C15: 6 | D15: 130
A16: delta | C16: =C15-C4 -> 0 | D16: =D15-D8 -> 30 | H16: =J16*(SIN(B16*PI()/180)) -> 0 | I16: =J16*(COS(B16*PI()/180)) -> 0 | J16: =C16*($E$9/60) -> 0 | K16: =IF(ATAN2(I16,H16)*180/PI()<0,360+ATAN2(I16,H16)*180/PI(),ATAN2(I16,H16)*180/PI()) -> 
A17: Bospeed | B17: =K17 -> 0 | C17: =J17 -> 1.2 | H17: =H16 -> 0 | I17: =C15*($E$9/60) -> 1.2 | J17: =SQRT((POWER(H17,2)+POWER(I17,2))) -> 1.2 | K17: =IF(ATAN2(I17,H17)*180/PI()<0,360+ATAN2(I17,H17)*180/PI(),ATAN2(I17,H17)*180/PI()) -> 0
A18: Bocourse | D18: 130 | H18: =SIN(D16*PI()/180)*J17 -> 0.6 | I18: =COS(D16*PI()/180)*J17 -> 1.039230485 | J18: =SQRT((POWER(H18,2)+POWER(I18,2))) -> 1.2 | K18: =IF(ATAN2(I18,H18)*180/PI()<0,360+ATAN2(I18,H18)*180/PI(),ATAN2(I18,H18)*180/PI()) -> 30
A19: Bo | H19: =H6+H17+H18 -> 5.298463104 | I19: =I6-(I4)+I18 -> 1.549331201 | J19: =SQRT((POWER(H19,2)+POWER(I19,2))) -> 5.520338616 | K19: =IF(ATAN2(I19,H19)*180/PI()<0,360+ATAN2(I19,H19)*180/PI(),ATAN2(I19,H19)*180/PI()) -> 73.70047656
A20: KBrel | B20: =K20 -> 294.5763266 | C20: =J20*(60/E9) -> 12.28428416 | D20: =IF(K20+D$8>360,K20+D$8-360,K20+D$8) -> 34.57632662 | F20: Kurs B relativ | H20: =H8-H19 -> -2.234285331 | I20: =I8-I19 -> 1.021819238 | J20: =SQRT((POWER(H20,2)+POWER(I20,2))) -> 2.456856833 | K20: =IF(ATAN2(I20,H20)*180/PI()<0,360+ATAN2(I20,H20)*180/PI(),ATAN2(I20,H20)*180/PI()) -> 294.5763266
A21: CPA | B21: =IF(K21>360,K21-360,K21) -> 204.5763266 | C21: =ABS(J21) -> 3.612631956 | D21: =IF(J21>0,"bkb","stb") -> stb | F21: Kleinster pasierabstand | H21: =J21*(SIN(B21*PI()/180)) -> 1.502511983 | I21: =J21*(COS(B21*PI()/180)) -> 3.285356509 | J21: =COS((K8-K21)*PI()/180)*J8 -> -3.612631956 | K21: =IF(K20+90>360,K20+90-360,K20+90)+180 -> 204.5763266
A22: TCA | C22: =J22/(C20/60) -> 8.387464758 | F22: Zeitspanne bis zum CPA [min] | H22: =H21-H8 -> -1.56166579 | I22: =I21-I8 -> 0.7142060704 | J22: =SQRT((POWER(H22,2)+POWER(I22,2))) -> 1.717233342 | K22: =IF(K20+90>360,K20+90-360,K20+90) -> 24.57632662
G34: Head Up
F35: Mgk | G35: =D4 -> 130 | M35: FdW | O35: Mgk
L36: A | M36: =C4 -> 6 | N36: kn | O36: =D4 -> 130 | P36: grad
M37: Distance | O37: RaSP
L38: B1 | M38: =C6 -> 5 | N38: sm | O38: =D6 -> 100 | P38: =E6 -> 11:36:00
L39: B2 | M39: =C7 -> 4 | N39: sm | O39: =D7 -> 90 | P39: =E7 -> 11:48:00
L41: KBrel | M41: =C10 -> 9.236199392 | N41: kn | O41: =D10 -> 37.78323092 | P41: grad
L42: CPA | M42: =C11 -> 3.703039841 | N42: sm | O42: =D11 -> stb | P42: Passierseite
L43: TCPA | M43: =C12 -> 9.825125709 | N43: min
L44: KBabs | M44: =C13 -> 13.15181974 | N44: kn | O44: =D13 -> 61.58775256 | P44: grad
M45: FdW | O45: Mgk
L46: A new | M46: =C15 -> 6 | N46: kn | O46: =D15 -> 130 | P46: grad
L47: Kbrelnew | M47: =C20 -> 12.28428416 | N47: kn | O47: =D20 -> 34.57632662
L48: CPA | M48: =C21 -> 3.612631956 | N48: sm | O48: =D21 -> stb | P48: Passierseite
L49: TCA | M49: 8.387464758 | N49: min

Sheet gezeiten
A1: Länge | B1: LwL | C1: 10 | D1: m
A2: Tiefgang | B2: TG | C2: 2.1 | D2: m
A3: Höhe | B3: h | C3: 12 | D3: m
A4: Std Port | B4: Gravillnes | C4: 1569 | H4: Alter der Gezeit | W4: SAb | X4: 10
A5: Sec Port | B5: Dunkerque | C5: 1568 | G5: =G6+2 -> 2005-04-03T12:00:00 | H5: neap | I5: =IF($C$8>G8,IF($C$8>G6,"neap",),) -> 0
B6: 2. | C6: 1. | D6: 2. | E6: 3. | G6: =G7+3 -> 2005-04-01T12:00:00 | H6: mid | I6: =IF($C$8>$G$8,IF(AND($C$8>G7,$C$8<G6),"mid",),) -> 0 | T6: DH | U6: 10
A7: aus Tabelle Std Port | B7: 1. NM/VM vor | C7: Datum | D7: 1. NM/VM nach | E7: Springverspätung | F7: HHW | G7: =G8+2 -> 2005-03-29T12:00:00 | H7: spring | I7: =IF($C$8>$G$8,IF(AND($C$8>#REF!,$C$8<G7),"sping",),) -> 0 | W7: HS | X7: 10
A8: NM / VM (aus Tabelle) | B8: 2005-03-10T12:00:00 | C8: 2005-03-23T14:00:00 | D8: 2005-03-25T12:00:00 | E8: 2 | G8: =IF(ABS(DAYS360(C8,B8,1))<ABS(DAYS360(C8,D8,1)),B8+E8,D8+E8) -> 2005-03-27T12:00:00 | H8: HHW
C9: UTC | G9: =G8-2 -> 2005-03-25T12:00:00 | H9: spring | I9: =IF($C$8<$G$8,IF(AND($C$8<G8,$C$8>G9),"spring",),) -> 0
G10: =G9-3 -> 2005-03-22T12:00:00 | H10: mid | I10: =IF($C$8<$G$8,IF(AND($C$8<G9,$C$8>G10),"mid",),) -> mid
G11: =G10-2 -> 2005-03-20T12:00:00 | H11: neap | I11: =IF($C$8<$G$8,IF(AND($C$8<G10,$C$8>G11),"neap",),) -> 0
A12: HW / NW from Std to Sec Port | P12: H | Q12: 10 | W12: TG | X12: 10
B13: NW | D13: HW | F13: NW | H13: HW | M13: WT | N13: 10
B14: Zeit NW | C14: H NW | D14: Zeit HW | E14: H HW | F14: Zeit NW | G14: Zeit HW | H14: Zeit HW | I14: H HW
A15: Std Port | B15: 06:18:00 | C15: 1.1 | D15: 11:53:00 | E15: 5.4 | F15: 18:36:00 | G15: 1.1 | H15: 12:30:00 | I15: 5.4
A16: - SC Std Port | C16: -0.1 | E16: =C16 -> -0.1 | G16: =C16 -> -0.1 | I16: =G16 -> -0.1 | P16: KT | Q16: 10 | W16: SA | X16: 10
A17: Std Port corrected | C17: =C15-C16 -> 1.2 | E17: =E15-E16 -> 5.5 | G17: =G15-G16 -> 1.2 | I17: =I15-I16 -> 5.5
A18: Difference (std Port - Sec port | B18: =G38 -> 1.142857143 | C18: =B38 -> -0.1 | D18: =G27 -> -8.527777778 | E18: =B27 -> 0.2 | F18: =H38 -> 1.571428571 | G18: =C38 -> -0.1 | H18: =H27 -> -7.5 | I18: =C27 -> 0.2
A19: + SC Sec Port | C19: -0.1 | E19: =C19 -> -0.1 | G19: =C19 -> -0.1 | I19: =G19 -> -0.1
A20: Sec Port [MEZ] | B20: =B15+(B18/1440) -> 06:19:08.571 | C20: =C17+C18+C19 -> 1 | D20: =D15+(D18/1440) -> 11:44:28.333 | E20: =E17+E18+E19 -> 5.6 | F20: =F15+(F18/1440) -> 18:37:34.286 | G20: =G17+G18+G19 -> 1 | H20: =H15+(H18/1440) -> 12:22:30 | I20: =I17+I18+I19 -> 5.6 | J20: MEZ
A21: HW / NW at Board Time | B21: =VLOOKUP($J20,timediff,MATCH($J21,timediffindex,0),0)+B20 -> 05:19:08.571 | C21: =C20 -> 1 | D21: =VLOOKUP($J20,timediff,MATCH($J21,timediffindex,0),0)+D20 -> 10:44:28.333 | E21: =E20 -> 5.6 | F21: =VLOOKUP($J20,timediff,MATCH($J21,timediffindex,0),0)+F20 -> 17:37:34.286 | G21: =G20 -> 1 | H21: =H20 -> 0.515625 | I21: =VLOOKUP($J20,timediff,MATCH($J21,timediffindex,0),0)+I20 -> 5.558333333 | J21: =C9 -> UTC
B22: --> use Board Time (times, h) in tide table to evaluate H at specific times at Sec Port
A24: Differences
A26: H dezi | B26: =E17 -> 5.5 | C26: =I17 -> 5.5 | D26: m | F26: Uhrzeit dezi | G26: =D15*24 -> 11.88333333 | H26: =H15*24 -> 12.5 | I26: stunden
A27: Hdiff (HUG) | B27: =$C30+($B30-$C30)*((B26-$B29)/($C29-$B29)) -> 0.2 | C27: =$C30+($B30-$C30)*((C26-$B29)/($C29-$B29)) -> 0.2 | D27: m | F27: Zeitdiff (ZUG) | G27: =IF(AND(G26>$G29,G26<$H29),G32,IF(AND(G26>$H29,G26<$G30),G33,IF(AND(G26>$G30,G26<$H30),G34,IF(AND(G26>$H30,G26<$G29),G35,"?")))) -> -8.527777778 | H27: =IF(AND(H26>$G29,H26<$H29),H32,IF(AND(H26>$H29,H26<$G30),H33,IF(AND(H26>$G30,H26<$H30),H34,IF(AND(H26>$H30,H26<$G29),H35,"?")))) -> -7.5 | I27: min
A28: HW H | F28: HW Zeit
A29: Std Port | B29: 6 | C29: 5 | D29: m | F29: std Port | G29: 2 | H29: 8 | I29: uhrzeit
A30: Sec Port | B30: 0.3 | C30: 0.1 | D30: m | G30: 14 | H30: 20
F31: Sec Port | G31: -5 | H31: -15 | I31: min
G32: =$H31+($G31-$H31)*((G26-$G29)/($H29-$G29)) -> 1.472222222 | H32: =$H31+($G31-$H31)*((H26-$G29)/($H29-$G29)) -> 2.5 | I32: =CONCATENATE(" >",G29," & <",H29) -> >2 & <8
G33: =$H31+($G31-$H31)*((G26-$H29)/($G30-$H29)) -> -8.527777778 | H33: =$H31+($G31-$H31)*((H26-$H29)/($G30-$H29)) -> -7.5 | I33: =CONCATENATE(" >",H29," & <",G30) -> >8 & <14
G34: =$H31+($G31-$H31)*((G26-$G30)/($H30-$G30)) -> -18.52777778 | H34: =$H31+($G31-$H31)*((H26-$G30)/($H30-$G30)) -> -17.5 | I34: =CONCATENATE(" >",G30," & <",H30) -> >14 & <20
G35: =$H31+($G31-$H31)*((G26-$H30)/($G29-$H30)) -> -10.49074074 | H35: =$H31+($G31-$H31)*((H26-$H30)/($G29-$H30)) -> -10.83333333 | I35: =CONCATENATE(" >",H30," & <",G29) -> >20 & <2
A37: H dezi | B37: =C17 -> 1.2 | C37: =G17 -> 1.2 | D37: m | F37: Uhrzeit dezi | G37: =B15*24 -> 6.3 | H37: =F15*24 -> 18.6 | I37: stunden
A38: Hdiff (HUG) | B38: =$C41+($B41-$C41)*((B37-$B40)/($C40-$B40)) -> -0.1 | C38: =$C41+($B41-$C41)*((C37-$B40)/($C40-$B40)) -> -0.1 | D38: m | F38: Zeitdiff (ZUG) | G38: =IF(AND(G37>$G40,G37<$H40),G43,IF(AND(G37>$H40,G37<$G41),G44,IF(AND(G37>$G41,G37<$H41),G45,IF(AND(G37>$H41,G37<$G40),G46,"?")))) -> 1.142857143 | H38: =IF(AND(H37>$G40,H37<$H40),H43,IF(AND(H37>$H40,H37<$G41),H44,IF(AND(H37>$G41,H37<$H41),H45,IF(AND(H37>$H41,H37<$G40),H46,"?")))) -> 1.571428571 | I38: min
A39: NW H | F39: NW Zeit
A40: Std Port | B40: 1.5 | C40: 0.6 | D40: m | F40: Std Port | G40: 2 | H40: 9 | I40: urhzeit
A41: Sec Port | B41: -0.1 | C41: -0.1 | D41: m | G41: 14 | H41: 21
F42: Sec Port | G42: -5 | H42: 5 | I42: min
G43: =$G42+($H42-$G42)*((G37-$G40)/($H40-$G40)) -> 1.142857143 | H43: =$G42+($H42-$G42)*((H37-$G40)/($H40-$G40)) -> 18.71428571 | I43: =CONCATENATE(" >",G40," & <",H40) -> >2 & <9
G44: =$G42+($H42-$G42)*((G37-$H40)/($G41-$H40)) -> -10.4 | H44: =$G42+($H42-$G42)*((H37-$H40)/($G41-$H40)) -> 14.2 | I44: =CONCATENATE(" >",H40," & <",G41) -> >9 & <14
G45: =$G42+($H42-$G42)*((G37-$G41)/($H41-$G41)) -> -16 | H45: =$G42+($H42-$G42)*((H37-$G41)/($H41-$G41)) -> 1.571428571 | I45: =CONCATENATE(" >",G41," & <",H41) -> >14 & <21
G46: =$G42+($H42-$G42)*((G37-$H41)/($G40-$H41)) -> 2.736842105 | H46: =$G42+($H42-$G42)*((H37-$H41)/($G40-$H41)) -> -3.736842105 | I46: =CONCATENATE(" >",H41," & <",G40) -> >21 & <2

Sheet grenzkurs
B1: Grenzkurs Berechnung
A3: Eigener Kurs | B3: rwk | C3: 70
A4: Peilung Gegner | B4: SP | C4: 155 | G4: 112.5
B5: rwp | C5: =C3+C4 -> 225 | F5: 225 | H5: 135
G6: 112.5
A7: Was sehe ich vom Gegner? | B7: grün/weiß | C7: =F11 -> 292.5 | D7: Grenzkurs
G9: Kurs Gegner
B10: Lichter zu sehen | F10: Grenzkurs | G10: von | H10: bis
B11: grün/rot | C11: Gegenkurs | D11: GK1 | E11: 0 | F11: =IF((C5+VLOOKUP(B7,B11:E20,4,0))+180>360,(C5+VLOOKUP(B7,B11:E20,4,0))+180-360,(C5+VLOOKUP(B7,B11:E20,4,0))+180) -> 292.5 | G11: =F11-5 -> 287.5 | H11: =F11+5 -> 297.5 | J11: =rwp+180
B12: grün | C12: 112,5° nach Stb | D12: GKg | E12: =-112.5/2 -> -56.25 | F12: =IF(G11+5>360,G11+5-360,G11+5) -> 292.5 | G12: =F12+5 -> 297.5 | J12: =GK1+5
B13: grün | C13: 112,5° nach Stb | D13: GKg | E13: =-112.5/2 -> -56.25 | F13: =IF(F12+112.5>360,F12+112.5-360,F12+112.5) -> 45 | H13: =F13-5 -> 40 | J13: =GK1+112,5-5
B14: grün/weiß | C14: 112,5° nach Stb | D14: GKg | E14: -112.5 | F14: =F13 -> 45 | G14: =F14-5 -> 40 | H14: =F14+5 -> 50 | J14: =GK1+112,5+-5
B15: weiß | C15: rwp +- 67,5° | D15: GKw | E15: -180 | F15: =F14 -> 45 | G15: =F15+5 -> 50 | J15: =rwk-SP+67,5+5
B16: weiß | C16: rwp +- 67,5° | D16: GKw | E16: -180 | F16: =IF(F15+135>360,F15+135-360,F15+135) -> 180 | H16: =F16-5 -> 175 | J16: =rwk+SP+67,5-5
B17: rot/weiß | C17: 112,5° nach Bkb | D17: GKr | E17: =E16+-67.5 -> -247.5 | F17: =F16 -> 180 | G17: =F17-5 -> 175 | H17: =F17+5 -> 185 | J17: =GK1-112,5+-5
B18: rot | C18: 112,5° nach Bkb | D18: GKr | E18: =E17+-112.5/2 -> -303.75 | F18: =F17 -> 180 | G18: =F18+5 -> 185 | J18: =GK1-112,5+5
B19: rot | C19: 112,5° nach Bkb | D19: GKr | E19: =E18 -> -303.75 | F19: =IF(F18+112.5>360,F18+112.5-360,F18+112.5) -> 292.5 | H19: =F19-5 -> 287.5 | J19: =GK1-112,5+5
B20: rot/grün | C20: Gegenkurs | D20: GK1 | E20: 0 | F20: =F19 -> 292.5 | G20: =F20-5 -> 287.5 | H20: =F20+5 -> 297.5 | J20: =rwp+180
A22: 0.984807753 | B22: rad
A23: 80 | B23: asin
A24: 202.5 | B24: Rotation
A25: -1.178097245
A26: -0.9238795325

Sheet wind
A1: Windbeschickung
C2: ° | D2: kn
A3: rwk | C3: 180 | D3: 5 | E3: kn
A4: WindRichtung / Geschw. | B4: NE | C4: =VLOOKUP(B4,WindVon,2,0) -> 45 | D4: 5 | E4: Scheinbarer Wind
A5: WindRichtung / Geschw. | B5: 7.071067812 | C5: 180 | D5: 9.238795325 | E5: wahrer Wind
A7: wind auf | B7: =IF(IF(C4-C3<0,C4-C3+360,C4-C3)>180,"bkb","stb") -> bkb | C7: aus SP | D7: =IF(C4-C3>180,360-(C4-C3),C4-C3) -> -135
A8: kurs | B8: =VLOOKUP(ABS(D7),KurszumWind,2,-1) -> raum
A9: BW | B9: =VLOOKUP(B8,WindVorhalte,2,0)*IF(B7="stb",-1,1) -> 2 | C9: °
A13: Vorhaltewinkel bei kn Wind (Erfahrungswerte) | H13: Wendewinkel | I13: 70
A14: Windgeschwindigkeit [kn] | B14: 5 | C14: 10 | D14: 20 | E14: 30 | F14: 40 | H14: KurszumWind | I14: Kurs
A15: =I15 -> gegen | B15: 0 | C15: 0 | D15: 0 | E15: 0 | F15: 0 | H15: 0 | I15: gegen
A16: amwind | B16: 5 | C16: 10 | D16: 15 | E16: 20 | F16: 25 | H16: =I13/2 -> 35 | I16: amwind
A17: halbwind | B17: 4 | C17: 9 | D17: 14 | E17: 18 | F17: 22 | H17: 70 | I17: halbwind
A18: raum | B18: 2 | C18: 5 | D18: 10 | E18: 10 | F18: 10 | H18: 110 | I18: raum
A19: vorwind | B19: 0 | C19: 0 | D19: 0 | E19: 0 | F19: 0 | H19: 160 | I19: vorwind
A20: vor | B20: 0 | C20: 0 | D20: 0 | E20: 0 | F20: 0 | H20: 180 | I20: vor
A29: Maßstab | B29: 1

Sheet Peilung-Beobachtung
A2: Beschickung Seitenpeilung in rechtweisende Peilung
A4: rwk | B4: 90
A6: Peilscheibe
A7: SP | B7: 53 | C7: =C9-C8 -> 53
A8: rwK | B8: 90 | C8: =B8 -> 90
A9: rwP | B9: =B7+B8 -> 143 | C9: =B9 -> 143
A11: Handpeilung
A12: MgP | B12: 120 | C12: =C14-C13 -> 120
A13: Abl | B13: 0 | C13: 0 | D13: da nicht bekannt
A14: mwP | B14: =B12+B13 -> 120 | C14: =C16-C15 -> 120
A15: Mw | B15: -3 | C15: -3
A16: rwP | B16: =B12+B15 -> 117 | C16: =B16 -> 117
A18: Steuerkompass
A19: MgP | B19: 120 | C19: =C21-C20 -> 120
A20: Abl | B20: 9 | C20: 9
A21: mwP | B21: 129 | C21: 129
A22: MW | B22: -3.5 | C22: -3.5
A23: rwP | B23: =B21+B22 -> 125.5 | C23: =B23 -> 125.5
A26: Feuer in der KIM
A27: Augenhöhe | B27: 2 | C27: m | G27: Ah
A28: Objekthöhe | B28: 4 | C28: m | G28: h
A29: FiK | B29: =2.075*(SQRT(B27)+SQRT(B28)) -> 7.084493142 | C29: sm | D29: =B29/smtokm -> 3.825320271 | E29: km | G29: FiK / Radius

Sheet Formeln
A2: Rumpfgeschindigkeit
A3: Lwl | B3: =Ablenkung!#REF! ->  | C3: kn
A4: Vrumpf | B4: =2.43*SQRT(B3) ->  | C4: km / h | D4: =B4/smtokm ->  | E4: km / h
E5: 5
A6: Umrechnungen
A7: 1 | B7: km/h | E7: 7
A8: =formulars!A12 -> NNE | B8: kn/h
A10: 5 | B10: sm | C10: 5 | D10: kn | E10: --> | F10: =formulars!A28 -> 0 | G10: =formulars!B28 -> 0

Sheet Wind-Welle
A1: Windstärken | E1: Staudruck | F1: Staudruck | H1: Bezeichnung der Windstärke | I1: Bezeichnung (english) | J1: Auswirkungen | K1: Beschreibung | L1: Beschreibung | N1: Seegang | R1: Wellenlänge | S1: Wellenhöhe (m) | T1: Wellenhöhe (m) | U1: Wave height (m) | V1: Wave height (m)
A2: (Bft) | B2: kn | C2: m/s | D2: km/h | E2: kg/m² | F2: N/m² | K2: Wirkung an Land | L2: Wirkung auf dem Meer | O2: Seegang nach Petersen | P2: Bezeichnung (Windsee) | Q2: Wave | R2: m | S2: Tiefsee (Atlantik) | T2: Flachsee (Ostsee) | U2: probable | V2: maximum | X2: kn | Y2: kn | Z2: kn to Bft (feedern) | AA2: (Bft) | AB2: (Bft)
A3: 0 | B3: 0-1 | C3: 0-0,02 | D3: 0-1 | E3: <1 | F3: − | H3: Windstille | I3: calm | J3: keine Luftbewegung, spiegelglatte See | K3: Keine Luftbewegung, Rauch steigt senkrecht empor | L3: Spiegelglatte See | N3: glatte See | O3: 0 | P3: Völlig ruhige, glatte See | Q3: - | R3: − | S3: − | T3: − | U3: - | V3: - | X3: 0 | AA3: 0
A4: 1 | B4: 1-4 | C4: 0,3-1,5 | D4: 2-5 | E4: 0 − 0,1 | F4: 0 − 1 | H4: Leiser Zug | I4: light air | J4: Luftbewgung an Rauch erkennbar, kleine Kräuselwellen | K4: Kaum merklich, Rauch treibt leicht ab, Windflügel und Windfahnen unbewegt | L4: Kleine schuppenförmig aussehende Kräuselwellen ohne Schaumköpfe | N4: sehr ruhige See | O4: 1 | P4: Ruhige, gekräuselte See | Q4: Ripples | R4: < 5 | S4: 0,0 − 0,2 | T4: 0.05 | U4: 0.1 | V4: 0.1 | X4: 2 | Z4: +1 | AA4: 1
A5: 2 | B5: 4-7 | C5: 1,6-3,3 | D5: 6-11 | E5: 0,2 − 0,6 | F5: 2 − 6 | H5: Leichte Brise | I5: light breeze | J5: Wind spürbar, kleine Wellen | K5: Blätter rascheln, Wind im Gesicht spürbar | L5: Kleine, kurze Wellen, Oberfläche glasig | N5: ruhige See | O5: 2 | P5: Schwach bewegte See | Q5: Small wavelets | R5: < 15 | S5: 0,5 − 0,75 | T5: 0.6 | U5: 0.2 | V5: 0.3 | X5: 5 | Z5: +1 | AA5: 2
A6: 3 | B6: 7-11 | C6: 3,4-5,4 | D6: 12-19 | E6: 0,7 − 1,8 | F6: 7 − 18 | H6: Schwache Brise | I6: gentle breeze | J6: Blätter an Bäumen werden bewegt, vereinzelt weiße Schaumkronen auf den Wellen | K6: Blätter und dünne Zweige bewegen sich, Wimpel werden gestreckt | L6: Kämme beginnen sich zu brechen. Anfänge der Schaumbildung | Q6: Large wavelets | R6: < 25 | U6: 0.6 | V6: 1.0 | X6: 10 | Z6: +1 | AA6: 3
A7: 4 | B7: 11-16 | C7: 5,5-7,9 | D7: 20-28 | E7: 1,9 − 3,9 | F7: 19 − 39 | H7: Mäßige Brise | I7: moderate breeze | J7: Zweige werden bewegt, noch kleine Wellen, jedoch mehr kleine Schaumkronen | K7: Zweige bewegen sich, loses Papier wird vom Boden gehoben | L7: Kleine, länger werdende Wellen, ziemlich verbreitet Schaumköpfe | N7: leicht bewegte See | O7: 3 | P7: Leicht bewegte See | Q7: Small waves | R7: < 50 | S7: 0,8 − 1,2 | T7: 1 | U7: 1.0 | V7: 1.5 | X7: 15 | Z7: +1 | AA7: 4
A8: 5 | B8: 16-21 | C8: 8,0-10,7 | D8: 29-38 | E8: 4,0 − 7,2 | F8: 40 − 72 | H8: Frische Brise | I8: fresh breeze | J8: Kleinere Bäume werden bewegt, auf allen Welle weiße Schaumkronen | K8: Größere Zweige und Bäume bewegen sich, Schaumköpfe auf Seen | L8: Wind deutlich hörbar; mäßige Wellen von großer Länge, überall Schaumköpfe | N8: mäßig bewegte See | O8: 4 | P8: Mäßig bewegte See | Q8: Moderate waves | R8: < 75 | S8: 1,2 − 2,0 | T8: 1.5 | U8: 2.0 | V8: 2.5 | X8: 20 | Z8: +1 | AA8: 5
A9: 6 | B9: 22-27 | C9: 10,8-13,8 | D9: 39-49 | E9: 7,3 − 11,9 | F9: 73 − 119 | H9: Starker Wind | I9: strong breeze | J9: Bäume werden bewegt, Bildung größerer Wellen, die Kämme brechen, vereinzelt Gischt | K9: Dicke Äste bewegen sich, hörbares Pfeifen an Drahtseilen, in Telefonleitungen | L9: Größere Wellen mit brechenden Köpfen, überall weiße Schaumflecken. Etwas Gischt | N9: ziemlich grobe See | O9: 5 | P9: Grobe See | Q9: Large waves | R9: < 100 | S9: 2,0 − 3,5 | T9: 2.3 | U9: 3.0 | V9: 4.0 | X9: 25 | Z9: +1 | AA9: 6
A10: 7 | B10: 28-33 | C10: 13,9-17,1 | D10: 50-61 | E10: 12,0 − 18,3 | F10: 120 − 183 | H10: Steifer Wind | I10: moderate gale (or near gale) | J10: Das Gehen gegen den Wind wird schwieriger, Wellenkämme brechen, Schaumkronen werden weggeweht | K10: Bäume schwanken, Widerstand beim Gehen gegen den Wind | L10: Weißer Schaum von den brechenden Wellenköpfen legt sich in Schaumstreifen in die Windrichtung | N10: grobe See | O10: 6 | P10: Sehr grobe See | Q10: Large waves | R10: < 135 | S10: 3,5 − 6,0 | T10: 3 | U10: 4.0 | V10: 5.5 | X10: 30 | Z10: +1 | AA10: 7
A11: 8 | B11: 34-40 | C11: 17,2-20,7 | D11: 62-74 | E11: 18,4 − 26,8 | F11: 184 − 268 | H11: Stürmischer Wind | I11: fresh gale (or gale) | J11: Zweige werden abgebrochen, Gehen wird schwierig, mäßig hohe Wellen, Gischt beginnt abzuwehen | K11: Große Bäume werden bewegt, Zweige brechen von Bäumen, beim Gehen erhebliche Behinderung | L11: Mäßig hohe Wellenberge, deren Köpfe verweht werden, ausgeprägte Schaumstreifen | N11: hohe See | O11: 7 | P11: Hohe See | Q11: Moderately high waves | R11: < 150 | S11: mehr als 6,0 | T11: 4 | U11: 6.0 | V11: 7.5 | X11: 40 | AA11: 8
A12: 9 | B12: 41-47 | C12: 20,8-24,4 | D12: 75-88 | E12: 26,9 − 37,3 | F12: 269 − 373 | H12: Sturm | I12: strong gale | J12: vereinzelt werden Dachziegel abgehoben, höhere Wellenberge, Gischt beeinträchtigt die Sicht | K12: Äste brechen, Ziegel werden von Dächern gehoben | L12: Hohe Wellen mit verwehtem Gischt, Brecher beginnen sich zu bilden ("Rollen") | Q12: High waves | R12: < 200 | U12: 7.0 | V12: 10.0 | X12: 45 | AA12: 9
A13: 10 | B13: 48-55 | C13: 24,5-28,4 | D13: 89-102 | E13: 37,4 − 50,5 | F13: 374 − 505 | H13: Schwerer Sturm | I13: whole gale (or storm) | J13: Bäume werden entwurzelt, es entstehen hohe Wellenberge, überbrechende, lange Kömme, See weiß wie Schaum | K13: Bäume werden entwurzelt, Häuser beschädigt; selten im Landesinneren | L13: Sehr hohe Wellen, weiße Flecken auf dem Wasser, lange, überbrechende Kämme, schwere Brecher | N13: sehr hohe See | O13: 8 | P13: Sehr hohe See | Q13: Very high waves | R13: < 250 | S13: bis 20,0 | T13: 5.5 | U13: 9.0 | V13: 12.5 | X13: 50 | AA13: 10
A14: 11 | B14: 56-63 | C14: 28,5-32,6 | D14: 103-117 | E14: 50,6 − 66,5 | F14: 506 − 665 | H14: Orkanartiger Sturm | I14: storm (or violent storm) | J14: ist mit schweren Strumschäden verbunden, sehr hohe See, starke Gischt in der Luft, stark herabgesetzte Sicht | K14: Heftige Böen, schwere Sturmschäden; sehr selten im Binnenland | L14: Brüllende See, Wasser wird waagerecht weggeweht, starke Sichtverminderung | N14: äußerst schwere See | O14: 9 | P14: Außergewöhnlich schwere See | Q14: Exceptionally high waves | R14: < 300 | S14: über 20,0 | T14: − | U14: 2013-05-11 | V14: 16.0 | X14: 60 | Z14: -1 | AA14: 11
A15: 12 | B15: <63 | C15: <32,6 | D15: <117 | E15: > 66,6 | F15: > 666 | H15: Orkan | I15: hurricane | J15: schwerste Verwüstungen, extrem hohe Wellen, See vollständig weiß. Luft mit Gischt erfüllt | K15: Schwere Sturmschäden und Verwüstungen; sehr selten im Landesinneren | L15: See vollkommen weiß, Luft mit Schaum und Gischt gefüllt, keine Fernsicht mehr | Q15: Exceptionally high waves | R15: > 300 | U15: 14.0 | V15: > 16 | X15: 65 | Z15: -1 | AA15: 12

Sheet Wolken
A1: http://de.wikipedia.org/wiki/Wolke
A2: Gattungen | B2: Arten | C2: Unterarten | D2: Sonderformen, Begleitwolken | E2: Mutterwolken (Genitus) | F2: Bilder
A3: Cirrus (Ci) | B3: fibratus | C3: intortus | D3: mamma | E3: Cirrocumulus | J3: Haufen | K3: Schicht | N3: vertikal
A4: (Federwolke) | B4: uncinus | C4: radiatus | E4: Altocumulus | H4: Wolken | J4: Cumulus | K4: Stratus | N4: Nimbo
B5: spissatus | C5: vertebratus | E5: Cumulonimbus | H5: Hohe | I5: Cirro | J5: Cc | K5: Cs | N5: Cirrus
B6: castellanus | C6: duplicatus | H6: '5-13km
B7: floccus
H9: Mittelhohe | I9: Alto | J9: Ac | K9: As
A10: Cirrocumulus (Cc) | B10: stratiformis | C10: undulatus | D10: virga | H10: '2-7km
A11: (kleine Schäfchenwolke) | B11: lenticularis | C11: lacunosus | D11: mamma
B12: castellanus
B13: floccus | H13: Tiefe | I13: Strato | J13: Cu | K13: St | M13: Ns | N13: Cn
H14: 2km
M16: Nimbus | N16: CumuluNimbus
A17: Cirrostratus (Cs) | B17: fibratus | C17: duplicatus | E17: Cirrocumulus | J17: CirroCumulus | K17: CirroStratus
A18: (hohe Schleierwolke) | B18: nebulosus | C18: undulatus | E18: Cumulonimbus | J18: AltoCumulus | K18: AltoStratus
J19: Cumulus | K19: Stratus
A24: Altocumulus (Ac) | B24: stratiformis | C24: perlucidus | D24: virga | E24: Cumulus
A25: (große Schäfchenwolke) | B25: lenticularis | C25: translucidus | D25: mamma | E25: Cumulonimbus
B26: castellanus | C26: opacus
B27: floccus | C27: duplicatus
C28: undulatus
C29: radiatus
C30: lacunosus
A31: Altostratus (As) | C31: translucidus | D31: virga | E31: Altocumulus
A32: (mittelhohe Schichtwolke) | C32: opacus | D32: praecipitatio | E32: Cumulonimbus
C33: duplicatus | D33: pannus
C34: undulatus | D34: mamma
C35: radiatus
A38: Stratocumulus (Sc) | B38: stratiformis | C38: perlucidus | D38: mamma | E38: Altostratus
A39: (Haufenschichtwolke) | B39: lenticularis | C39: translucidus | D39: virga | E39: Nimbostratus
B40: castellanus | C40: opacus | D40: praecipitatio | E40: Cumulus
C41: duplicatus | E41: Cumulonimbus
C42: undulatus
C43: radiatus
C44: lacunosus
A45: Stratus (St) | B45: nebulosus | C45: opacus | D45: praecipitatio | E45: Nimbostratus
A46: (tiefe Schichtwolken) | B46: fractus | C46: translucidus | E46: Cumulus
C47: undulatus | E47: Cumulonimbus
A52: Cumulus (Cu) | B52: humilis | C52: radiatus | D52: pileus | E52: Altocumulus
A53: (Haufenwolken) | B53: mediocris | D53: velum | E53: Stratocumulus
B54: congestus | D54: virga
B55: fractus | D55: praecipitatio
D56: arcus
D57: pannus
D58: tuba
A59: Nimbostratus (Ns) | D59: praecipitatio | E59: Cumulus
A60: (Regenwolken) | D60: virga | E60: Cumulonimbus
D61: pannus
A66: Cumulonimbus (Cb) | B66: calvus | D66: praecipitatio | E66: Altocumulus
A67: (Gewitterwolken) | B67: capillatus | D67: virga | E67: Altostratus
D68: pannus | E68: Nimbostratus
D69: incus | E69: Stratocumulus
D70: mamma | E70: Cumulus
D71: pileus
D72: velum
D73: arcus
D74: tuba

Sheet formulars
A1: formulars & basic data & factors
A3: Rumpfgeschwindigkeit [kn] | B3: =2,43*SQRT(Lwl)
A4: Feuer in der Kim [sm] | B4: =2,075*(SQRT(Augenhöhe)+SQRT(Objekthöhe))
A5: Wassertiefe [m] | B5: = Kartentiefe + Höhe der Gezeit
A7: Umrechnungen | B7: 1 Seemeile = 1,852 Kilometer = 1852 m | C7: 1.852 | D7: smtokm
B8: 1 Kilometer = 0,5400 Seemeilen | C8: 0.54 | D8: kmtosm
A10: WindRichtung | B10: WindVon
A11: N | B11: 0
A12: NNE | B12: =90/2/2 -> 22.5
A13: NE | B13: =$B$12+B12 -> 45
A14: ENE | B14: =$B$12+B13 -> 67.5
A15: E | B15: 90
A16: ESE | B16: 112.5
A17: SE | B17: 135
A18: SSE | B18: 157.5
A19: S | B19: 180
A20: SSW | B20: 202.5
A21: SW | B21: 225
A22: WSW | B22: 247.5
A23: W | B23: 270
A24: WNW | B24: 292.5
A25: NW | B25: 315
A26: NNW | B26: 337.5
A27: N | B27: 360
A32: 1 | B32: =Kurs!#REF! -> 
A33: =A32*VLOOKUP($B$32,$A$35:$H$41,MATCH($B$33,$A$34:$H$34,0),0) ->  | B33: =Kurs!#REF! ->  | C33: 1 Faden = 1/100 Kabellänge = 1/1000 Seemeile = 1,852 m
B34: km | C34: sm | D34: kbl | E34: fm | F34: km/h | G34: kn/h
A35: km | B35: 1 | C35: 1.852 | D35: 18.52 | E35: 1852
A36: sm | B36: =1/1.852 -> 0.5399568035 | C36: 1 | D36: 10 | E36: 1000
A37: kbl | B37: =1/18.52 -> 0.05399568035 | C37: =1/10 -> 0.1 | D37: 1 | E37: 100
A38: fm | B38: =1/1852 -> 0.0005399568035 | C38: =1/1000 -> 0.001 | D38: =1/100 -> 0.01 | E38: 1
A39: km/h | F39: 1 | G39: =1/1.852 -> 0.5399568035
A40: kn/h | F40: 1.852 | G40: 1
A47: =Kurs!#REF! ->  | B47: =Kurs!#REF! -> 
A48: =Kurs!#REF! ->  | B48: =Kurs!#REF! -> 
A49: =VLOOKUP($B$47,$A$50:$D$53,MATCH($B$48,$A$50:$D$50,0),0) ->  | B49: =VLOOKUP($B$47,$F$50:$I$53,MATCH($B$48,$F$50:$I$50,0),0) -> 
B50: min | C50: sm | D50: kn | G50: min | H50: sm | I50: kn
A51: min | B51: 1 | C51: =A47/60*A48 ->  | D51: =A47/60*A48 ->  | F51: =A51 -> min | G51: min | H51: kn | I51: sm | M51: 2.5
A52: sm | B52: =A47/60*A48 ->  | C52: 1 | D52: =A47*60/A48 ->  | F52: =A52 -> sm | G52: kn | H52: sm | I52: min | M52: 0.04166666667 | N52: =M52*24 -> 1
A53: kn | B53: =A47/60*A48 ->  | C53: =A47*60/A48 ->  | D53: 1 | F53: =A53 -> kn | G53: sm | H53: min | I53: kn
A56: from ↓ to → | B56: UTC | C56: MEZ | D56: MESZ
A57: UTC | B57: 0 | C57: 0.04166666667 | D57: 0.08333333333
A58: MEZ | B58: -0.04166666667 | C58: 00:00:00 | D58: 0.04166666667 | E58: TimeZone-0100 | G58: Europe
A59: MESZ | B59: -0.08333333333 | C59: -0.04166666667 | D59: 00:00:00

Sheet KVR
A1: KVR | B1: Kollisionsverhütungsregeln (KVR)
B2: Teil A Allgemeines (Regel 1 bis Regel 3)
B3: Teil B Ausweich- und Fahrregeln ( Regel 4 bis Regel 1 9)
B4: Teil C Lichter und Signalkörper (Regel 20 bis Regel 31)
B5: Teil D Schall- und Lichtsignale (Regel 3 2 bis Regel 37)
B6: Teil E Befreiungen (Regel 38)
B8: Kollisionsverhütungsregeln
B10: Die Kollisionsverhütungsregeln (KVR) - offiziell „Internationale Regeln von 1972 zur Verhütung von Zusammenstößen auf See“ - stellen internationales Seeverkehrsrecht dar. Sie sind der grundlegende rechtliche Rahmen zur Regelung der Sicherheit und Leichtigkeit des Verkehrs auf hoher See und den damit verbundenen Gewässern. Die KVR dienen der Vermeidung von Schiffszusammenstößen. Sie wurden 1972 von der IMO (UN-Unterorganisation für die Seeschifffahrt) verabschiedet und gelten für alle Schiffe, auch für Sportboote. Der Originaltitel lautet: Conventions on the International Regulations for Preventing Collisions at Sea (COLREGs).
B11: Auf deutschen Seeschifffahrtsstraßen und bestimmten von Seeschiffen befahrenen Binnenwasserstrassen wie Elbe, Weser und Nord-Ostsee-Kanal gelten zusätzlich präzisierend die Seeschifffahrtsstraßen-Ordnung (SeeSchStrO) bzw. die Schifffahrtsordnung Emsmündung (EmsSchO). Die KVR sind aber trotzdem die grundlegenden Regeln des Seeschiffsverkehrs.
B13: Die KVR enthalten folgende Bereiche:
B15: Teil A: Allgemeines (Regeln 1-3, u. a. Anwendungsbereiche, Verantwortlichkeit und allgemeine Begriffsbestimmungen).
B17: Teil B: Ausweich und Fahrregeln (Regeln 4-19, u.a. Ausweichen, Kurs halten, Manöver zur Vermeidung von Unfällen, Verhalten im Fahrwasser, Überholen, usw.).
B19: Teil C: Lichterführung und Signalkörper (Regeln 20-31, u.a. Lichter, Navigationslichter und Signalkörper).
B21: Teil D: Schall- und Lichtsignale (Regeln 32-37, u. a. Darstellung der Schallsignale, Schallsignalgeräte).
B23: Teil E: Befreiungen (Regel 38)
B25: Zur Signalisierung von Fahrtrichtung und Position dienen die Positionslichter. Bei Kollisionskurs soll der Bevorrechtigte notfalls mit dem Manöver des letzten Augenblicks versuchen, eine Kollision zu vermeiden oder wenigstens die Schäden gering zu halten.
B27: Rechtliche Grundlagen Deutschland
B29: In Deutschland, insbesondere im deutschen Küstenmeer und auf Schiffen, die berechtigt sind, die Bundesflagge zu führen, haben die KVR Geltung durch die Verordnung zu den Internationalen Regeln von 1972 zur Verhütung von Zusammenstößen auf See vom 13. Juni 1977 (BGBl. I S. 813), die zuletzt durch Artikel 2 der Verordnung vom 15. Januar 2012 (BGBl. I S. 112) geändert worden ist.
A32: Teil A | B32: Allgemeines
B33: Regel 1 Anwendung
B34: Regel 2 Verantwortlichkeit
B35: Regel 3 Allgemeine Begriffsbestimmungen
A37: Teil B | B37: Ausweich- und Fahrregeln
A39: Abschnitt I | B39: Verhalten von Fahrzeugen bei allen Sichtverhältnissen
B40: Regel 4 Anwendung
B41: Regel 5 Ausguck
B42: Regel 6 Sichere Geschwindigkeit
B43: Regel 7 Möglichkeit der Gefahr eines Zusammenstoßes
B44: Regel 8 Manöver zur Vermeidung von Zusammenstößen
B45: Regel 9 Enge Fahrwasser
B46: Regel 10 Verkehrstrennungsgebiete
A48: Abschnitt II | B48: Verhalten von Fahrzeugen, die einander in Sicht haben
B49: Regel 11 Anwendung
B50: Regel 12 Segelfahrzeuge
B51: Regel 13 Überholen
B52: Regel 14 Entgegengesetzte Kurse
B53: Regel 15 Kreuzende Kurse
B54: Regel 16 Maßnahmen des Ausweichpflichtigen
B55: Regel 17 Maßnahmen des Kurshalters
B56: Regel 18 Verantwortlichkeiten der Fahrzeuge untereinander
A58: Abschnitt III | B58: Verhalten von Fahrzeugen bei verminderter Sicht
B59: Regel 19 Verhalten von Fahrzeugen bei verminderter Sicht
A61: Teil C | B61: Lichter und Signalkörper
B62: Regel 20 Anwendung
B63: Regel 21 Begriffsbestimmungen
B64: Regel 22 Tragweite der Lichter
B65: Regel 23 Maschinenfahrzeuge in Fahrt
B66: Regel 24 Schleppen und Schieben
B67: Regel 25 Segelfahrzeuge in Fahrt und Fahrzeuge unter Ruder
B68: Regel 26 Fischereifahrzeuge
B69: Regel 27 Manövrierunfähige oder manövrierbehinderte Fahrzeuge
B70: Regel 28 Tiefgangbehinderte Fahrzeuge
B71: Regel 29 Lotsenfahrzeuge
B72: Regel 30 Fahrzeuge vor Anker und auf Grund
B73: Regel 31 Wasserflugzeuge
A75: Teil D | B75: Schall- und Lichtsignale
B76: Regel 32 Begriffsbestimmungen
B77: Regel 33 Ausrüstung für Schallsignale
B78: Regel 34 Manöver- und Warnsignale
B79: Regel 35 Schallsignale bei verminderter Sicht
B80: Regel 36 Aufmerksamkeitssignale
B81: Regel 37 Notsignale
A83: Teil E | B83: Befreiungen
B84: Regel 38 Befreiungen
B85: Anlage I Anordnung und technische Einzelheiten der Lichter und Signalkörper
B86: Anlage II Zusatzsignale für nahe beieinander fischende Fahrzeuge
B87: Anlage III Technische Einzelheiten der Schallsignalanlagen
B88: Anlage IV Notzeichen
B91: http://www.gesetze-im-internet.de/seestro_1972/index.html

Sheet help
A2: Stromdreieck
A3: Ablenkungstabelle erstellen
A4: Windrichtungen
A5: Steuerkurs
A50: Stromdreieck
A60: Ablenkungstabelle erstellen
A61: http://www.nautisches-lexikon.de/b_navi/ablenkungstabelle/f.html
A70: Windrichtungen
A90: Rumpfgeschwindigkeit
A91: Die Rumpfgeschwindigkeit ist ein theoretischer Maximalwert für die bei Verdrängerfahrt mögliche Höchstgeschwindigkeit eines Schiffes. Sie errechnet sich näherungsweise aus der Quadratwurzel der Wasserlinienlänge
A92: des Schiffes in Metern multipliziert mit dem Faktor 4,5 (Ergebnis in Kilometern pro Stunde), 1,25 (Ergebnis in Meter pro Sekunde) oder 2,43 (Ergebnis in Knoten):
A96: Die Rumpfgeschwindigkeit ist die Ausbreitungsgeschwindigkeit des vom Schiff selbst erzeugten, aus Bug- und Heckwelle bestehenden Wellensystems. Mit zunehmender Geschwindigkeit nimmt die Wellenlänge der Bugwelle zu, bis sich Bug- und Heckwelle überlagern und das Schiff zwischen seiner Bug- und Heckwelle „gefangen“ ist. Die Rumpfgeschwindigkeit beträgt für einen Rumpf mit einer Länge der Konstruktionswasserlinie
A98: von 10 Metern etwa 7,7 Knoten 14,2 km/h,
A99: von 100 Metern etwa 24 Knoten 44,4 km/h,
A100: von 300 Metern etwa 42 Knoten 77,8 km/h.
A102: Die Tatsache, dass die Rumpfgeschwindigkeit nur von der Wasserlinienlänge abhängt, ist der Grund, warum größere Schiffe – bei entsprechend starkem Antrieb durch Wind oder Motorleistung – in Verdrängerfahrt höhere Geschwindigkeiten erreichen können als kleinere Schiffe. Dies spiegelt sich in der Redewendung „Länge läuft“ wider.
A104: Wirtschaftlich akzeptabel sind bei ihnen normalerweise nur Geschwindigkeiten bis ca.
A105: .
A110: Mathematic
A111: Einheitskreis
A122: Trigonomie
A140: Feuer in der Kim
I142: Die Formel hierfür lautet R= 2,075 * ( Ö Ah + Ö h )
I144: R= Radius in Seemeilen
I145: Ah = Augenhöhe in m
I146: h = Leuchtfeuerhöhe in m
A151: Steuerkurs

Sheet Tabelle5
